lending/lending_fUSD_20250706
["ID","MTS","AMOUNT","RATE_DAILY","PERIOD"]
[370020483,1751837443423,-3343.0,0.00019115,2]
[370020484,1751837443433,-354.93197028,0.00019115,2]
[370020487,1751837443448,-594.06802972,0.00019115,2]
[370020489,1751837443458,-754.0,0.00019115,2]
[370020491,1751837443467,-151.0,0.00019125,2]
[370020493,1751837443477,-56.51306882,0.00019125,2]
[370020495,1751837443488,-94.48693118,0.00019125,2]
[370020497,1751837443498,-174.481,0.00019125,2]
[370020500,1751837443507,-150.926,0.00019125,2]
[370020501,1751837443518,-180.388,0.00019125,2]
[370020504,1751837443528,-194.483,0.00019125,2]
[370020506,1751837443538,-101.18870395,0.00019125,2]
[370020508,1751837443549,-118.59129605,0.00019125,2]
[370020510,1751837443559,-279.286,0.00019125,2]
[370020512,1751837443569,-292.157,0.00019125,2]
[370020514,1751837443578,-253.434,0.00019125,2]
[370020516,1751837443588,-250.691,0.00019125,2]
[370020518,1751837443600,-184.835,0.00019125,2]
[370020520,1751837443610,-158.699,0.00019125,2]
[370020522,1751837443620,-201.762,0.00019125,2]
[370020525,1751837443630,-205.363,0.00019125,2]
[370020528,1751837443639,-245.923,0.00019125,2]
[370020531,1751837443648,-168.0,0.00019164,2]
[370020534,1751837443657,-863.1177354,0.00019167,2]
[370020536,1751837443666,-753.1756872,0.00019167,2]
[370020539,1751837443675,-567.8672765,0.00019167,2]
[370020542,1751837443685,-21850.72430485,0.00019167,2]
[370020546,1751837443697,-9087.49547095,0.00019167,2]
[370020548,1751837443706,-150.0,0.0001917,2]
[370020550,1751837443715,-1476.2920658,0.00019174,2]
[370020552,1751837443725,-150.0,0.00019178,2]
[370020554,1751837443735,-151.0,0.00019178,2]
[370020556,1751837443744,-276.53,0.00019178,2]
[370020558,1751837443753,-162.6880362,0.00019187,2]
[370020560,1751837443763,-377.0,0.000192,2]
[370020562,1751837443772,-868.0,0.000192,2]
[370020564,1751837443782,-238.0,0.000192,2]
[370020566,1751837443791,-1114.37671844,0.00019236,2]
[370020568,1751837443801,-186.45,0.00019246,2]
[370020570,1751837443811,-40050.32873082,0.00019247,2]
[370020572,1751837443822,-536.86897779,0.00019248,2]
[370020574,1751837443834,-6619.95193725,0.00019248,2]
[370020592,1751837444011,2160.12,0.00030136,120]
[370020618,1751837444264,473.31785122,0.00030136,120]
[370020631,1751837444376,460.0,0.00030136,120]
[370020677,1751837444818,554.28,0.00030136,120]
[370020830,1751837446340,-2447.13085106,0.00019248,2]
[370020834,1751837446424,-1937.67948234,0.00019248,2]
[370020835,1751837446436,-572.0000031,0.00019248,2]
[370021020,1751837448338,460.0,0.00030136,120]
[370021083,1751837448979,605.87,0.00030136,120]
[370021127,1751837449547,507.38,0.00030136,120]
[370021193,1751837450188,4151.46,0.00030136,120]
[370021267,1751837450896,2585.21,0.00030136,120]
[370021275,1751837450965,593.16,0.00030136,120]
[370021377,1751837452185,864.66,0.00030136,120]
[370021487,1751837453249,460.0,0.00030136,120]
[370021498,1751837453346,460.0,0.00030136,120]
[370021624,1751837454737,460.0,0.00030136,120]
[370021732,1751837455886,701.33,0.00030136,120]
[370021733,1751837455936,460.0,0.00030136,120]
[370021818,1751837456784,1322.83,0.00030136,120]
[370021848,1751837457198,734.1,0.00030136,120]
[370021853,1751837457509,369.66107136,0.00030136,120]
[370021883,1751837458065,460.0,0.00030136,120]
[370021902,1751837458243,868.38,0.00030136,120]
[370021923,1751837458433,460.0,0.00030136,120]
[370022002,1751837459382,656.68,0.00030136,120]
[370022067,1751837460028,460.0,0.00030136,120]
[370022119,1751837461543,1272.52,0.00030136,120]
[370022120,1751837462414,998.52,0.00030136,120]
[370022121,1751837464675,777.22,0.00030136,120]
[370022122,1751837464790,460.0,0.00030136,120]
[370022123,1751837465574,656.68,0.00030136,120]
[370022124,1751837465729,638.82,0.00030136,120]
[370022125,1751837465782,460.0,0.00030136,120]
[370022126,1751837466351,460.0,0.00030136,120]
[370022127,1751837468314,474.72354986,0.00030136,120]
[370022128,1751837469237,550.66,0.00030136,120]
[370022129,1751837471224,460.0,0.00030136,120]
[370022130,1751837472226,499.45,0.00030136,120]
[370022131,1751837472910,460.0,0.00030136,120]
[370022132,1751837474706,460.0,0.00030136,120]
[370022133,1751837474760,460.0,0.00030136,120]
[370022134,1751837474819,605.24,0.00030136,120]
[370022135,1751837474904,525.11,0.00030136,120]
[370022136,1751837475481,460.0,0.00030136,120]
[370022137,1751837475532,460.0,0.00030136,120]
[370022138,1751837476597,521.45,0.00030136,120]
[370022139,1751837476656,564.59,0.00030136,120]
[370022140,1751837477137,1518.51,0.00030136,120]
[370022141,1751837478114,646.26,0.00030136,120]
[370022142,1751837478341,2662.13,0.00030136,120]
[370022143,1751837481719,697.1,0.00030136,120]
[370022144,1751837481788,460.0,0.00030136,120]
[370022145,1751837484234,460.0,0.00030136,120]
[370022146,1751837485057,460.0,0.00030136,120]
[370022147,1751837485554,661.0,0.00030136,120]
[370022148,1751837486866,460.0,0.00030136,120]
[370022149,1751837487093,544.74,0.00030136,120]
[370022150,1751837487257,681.79,0.00030136,120]
[370022151,1751837487324,460.0,0.00030136,120]
[370022152,1751837487730,460.0,0.00030136,120]
[370022153,1751837487871,583.16,0.00030136,120]
[370022154,1751837488310,797.16,0.00030136,120]
[370022155,1751837489544,460.0,0.00030136,120]
[370022156,1751837489992,929.19,0.00030136,120]
[370022157,1751837493028,460.0,0.00030136,120]
[370022158,1751837494690,460.0,0.00030136,120]
[370022159,1751837495579,1937.94,0.00030136,120]
[370022160,1751837495676,460.0,0.00030136,120]
[370022161,1751837495753,460.0,0.00030136,120]
[370022162,1751837495937,506.27,0.00030136,120]
[370022163,1751837496461,460.0,0.00030136,120]
[370022164,1751837497231,465.12,0.00030136,120]
[370022165,1751837498273,460.0,0.00030136,120]
[370022166,1751837498644,503.23,0.00030136,120]
[370022167,1751837499010,460.0,0.00030136,120]
[370022168,1751837500499,1886.64,0.00030136,120]
[370022169,1751837501312,255.25833945,0.00030136,120]
[370022170,1751837501438,594.54,0.00030136,120]
[370022171,1751837502135,612.24,0.00030136,120]
[370022172,1751837503335,1070.95,0.00030136,120]
[370022173,1751837504362,460.0,0.00030136,120]
[370022174,1751837504586,867.74,0.00030136,120]
[370022175,1751837504769,1181.13,0.00030136,120]
[370022176,1751837505736,460.0,0.00030136,120]
[370022177,1751837507973,645.73,0.00030136,120]
[370022178,1751837508016,460.0,0.00030136,120]
[370022179,1751837508283,672.39,0.00030136,120]
[370022180,1751837509467,41157.38,0.00030136,120]
[370022181,1751837509561,460.0,0.00030136,120]
[370022182,1751837509642,460.0,0.00030136,120]
[370022183,1751837509859,460.0,0.00030136,120]
[370022184,1751837512973,3397.36,0.00030136,120]
[370022185,1751837513054,521.76311432,0.00030136,120]
[370022186,1751837513241,535.19,0.00030136,120]
[370022187,1751837515179,469.95,0.00030136,120]
[370022188,1751837516857,602.74,0.00030136,120]
[370022189,1751837516930,460.0,0.00030136,120]
[370022190,1751837517666,460.0,0.00030136,120]
[370022191,1751837517937,460.0,0.00030136,120]
[370022192,1751837518957,482.56,0.00030136,120]
[370022193,1751837520807,460.0,0.00030136,120]
[370022194,1751837521526,551.59,0.00030136,120]
[370022195,1751837522021,1292.85,0.00030136,120]
[370022196,1751837522281,460.0,0.00030136,120]
[370022197,1751837523432,511.24,0.00030136,120]
[370022198,1751837525986,460.0,0.00030136,120]
[370022199,1751837526238,460.0,0.00030136,120]
[370022200,1751837526538,856.4,0.00030136,120]
[370022201,1751837527747,546.4,0.00030136,120]
[370022202,1751837528084,460.0,0.00030136,120]
[370022203,1751837528457,460.0,0.00030136,120]
[370022204,1751837530203,460.0,0.00030136,120]
[370022205,1751837530492,460.0,0.00030136,120]
[370022206,1751837531722,1024.64,0.00030136,120]
[370022207,1751837532471,7477.2,0.00030136,120]
[370022208,1751837534051,460.0,0.00030136,120]
[370022209,1751837534252,460.0,0.00030136,120]
[370022210,1751837534880,460.0,0.00030136,120]
[370022211,1751837535143,519.85,0.00030136,120]
[370022212,1751837537565,460.0,0.00030136,120]
[370022213,1751837537916,460.0,0.00030136,120]
[370022214,1751837538760,525.85,0.00030136,120]
[370022215,1751837541748,2178.38,0.00030136,120]
[370022216,1751837542392,460.0,0.00030136,120]
[370022217,1751837542649,483.97,0.00030136,120]
[370022218,1751837542904,460.0,0.00030136,120]
[370022219,1751837543361,460.0,0.00030136,120]
[370022220,1751837544111,460.0,0.00030136,120]
[370022221,1751837546850,1019.55,0.00030136,120]
[370022222,1751837547071,460.0,0.00030136,120]
[370022223,1751837548135,551.76,0.00030136,120]
[370022224,1751837548775,470.846206,0.00030136,120]
[370022225,1751837549005,555.01,0.00030136,120]
[370022226,1751837549493,460.0,0.00030136,120]
[370022227,1751837550860,460.0,0.00030136,120]
[370022228,1751837552243,649.31,0.00030136,120]
[370022229,1751837552465,903.41,0.00030136,120]
[370022230,1751837552629,1025.81,0.00030136,120]
[370022231,1751837553580,460.0,0.00030136,120]
[370022232,1751837553622,460.0,0.00030136,120]
[370022233,1751837553695,673.64,0.00030136,120]
[370022234,1751837553933,470.7,0.00030136,120]
[370022235,1751837554847,583.26,0.00030136,120]
[370022236,1751837556069,460.0,0.00030136,120]
[370022237,1751837556719,647.44,0.00030136,120]
[370022238,1751837556900,726.35,0.00030136,120]
[370022239,1751837557323,661.91,0.00030136,120]
[370022240,1751837558436,1414.53,0.00030136,120]
[370022241,1751837559443,504.57,0.00030136,120]
[370022242,1751837561587,513.18,0.00030136,120]
[370022243,1751837561681,492.32,0.00030136,120]
[370022244,1751837561768,460.0,0.00030136,120]
[370022245,1751837562137,460.0,0.00030136,120]
[370022246,1751837562351,460.0,0.00030136,120]
[370022247,1751837564056,510.63,0.00030136,120]
[370022248,1751837564115,1517.62,0.00030136,120]
[370022249,1751837565605,460.0,0.00030136,120]
[370022250,1751837566157,610.74,0.00030136,120]
[370022251,1751837566880,460.0,0.00030136,120]
[370022252,1751837567069,460.0,0.00030136,120]
[370022253,1751837569701,571.44,0.00030136,120]
[370022254,1751837571535,460.0,0.00030136,120]
[370022255,1751837572148,7442.53,0.00030136,120]
[370022256,1751837572290,554.42,0.00030136,120]
[370022273,1751837573754,830.26,0.00030136,120]
[370022274,1751837576794,460.0,0.00030136,120]
[370022275,1751837577268,460.0,0.00030136,120]
[370022276,1751837578380,460.0,0.00030136,120]
[370022277,1751837579286,460.0,0.00030136,120]
[370022278,1751837579365,460.0,0.00030136,120]
[370022279,1751837579678,549.54,0.00030136,120]
[370022280,1751837580703,468.53,0.00030136,120]
[370022281,1751837582491,879.68,0.00030136,120]
[370022282,1751837583363,631.32,0.00030136,120]
[370022284,1751837583855,460.0,0.00030136,120]
[370022285,1751837585666,460.0,0.00030136,120]
[370022286,1751837585975,959.08,0.00030136,120]
[370022287,1751837587861,460.0,0.00030136,120]
[370022288,1751837588597,653.02,0.00030136,120]
[370022289,1751837588680,538.67,0.00030136,120]
[370022290,1751837589006,460.0,0.00030136,120]
[370022291,1751837589738,883.17,0.00030136,120]
[370022292,1751837590975,649.38,0.00030136,120]
[370022293,1751837592952,1200.87,0.00030136,120]
[370022294,1751837593162,1255.11,0.00030136,120]
[370022295,1751837593335,1335.93,0.00030136,120]
[370022296,1751837593601,2370.59,0.00030136,120]
[370022297,1751837595378,571.67,0.00030136,120]
[370022298,1751837597146,921.07,0.00030136,120]
[370022299,1751837598087,502.43,0.00030136,120]
[370022300,1751837598654,972.34,0.00030136,120]
[370022301,1751837599147,460.0,0.00030136,120]
[370022302,1751837602983,825.88,0.00030136,120]
[370022303,1751837603136,610.33,0.00030136,120]
[370022304,1751837604375,500.3,0.00030136,120]
[370022305,1751837605153,191.50762092,0.00030136,120]
[370022306,1751837605249,956.1,0.00030136,120]
[370022307,1751837605400,1623.29,0.00030136,120]
[370022308,1751837605447,540.61,0.00030136,120]
[370022309,1751837606702,593.4,0.00030136,120]
[370022310,1751837609275,460.0,0.00030136,120]
[370022311,1751837610842,460.0,0.00030136,120]
[370022312,1751837611869,968.73,0.00030136,120]
[370022313,1751837613798,2050.45,0.00030136,120]
[370022314,1751837614246,460.0,0.00030136,120]
[370022315,1751837614327,528.04,0.00030136,120]
[370022316,1751837614376,469.57,0.00030136,120]
[370022317,1751837614736,934.82,0.00030136,120]
[370022318,1751837616140,460.0,0.00030136,120]
[370022319,1751837617822,460.0,0.00030136,120]
[370022320,1751837619678,460.0,0.00030136,120]
[370022321,1751837620241,1293.61,0.00030136,120]
[370022322,1751837620850,460.0,0.00030136,120]
[370022323,1751837622944,460.0,0.00030136,120]
[370022324,1751837622998,611.51,0.00030136,120]
[370022325,1751837623373,460.0,0.00030136,120]
[370022326,1751837623539,460.0,0.00030136,120]
[370022327,1751837625847,1667.49,0.00030136,120]
[370022328,1751837626162,460.0,0.00030136,120]
[370022329,1751837626607,1954.24,0.00030136,120]
[370022330,1751837626656,708.04,0.00030136,120]
[370022331,1751837626835,460.0,0.00030136,120]
[370022332,1751837626986,460.0,0.00030136,120]
[370022333,1751837627832,1704.48,0.00030136,120]
[370022334,1751837628391,460.0,0.00030136,120]
[370022335,1751837630308,460.0,0.00030136,120]
[370022336,1751837631554,460.0,0.00030136,120]
[370022337,1751837633330,1472.44,0.00030136,120]
[370022338,1751837634395,937.44,0.00030136,120]
[370022339,1751837634438,612.93,0.00030136,120]
[370022340,1751837635664,460.0,0.00030136,120]
[370022341,1751837635876,460.0,0.00030136,120]
[370022342,1751837636321,2294.99,0.00030136,120]
[370022343,1751837636505,460.0,0.00030136,120]
[370022344,1751837637551,460.0,0.00030136,120]
[370022345,1751837638430,830.61,0.00030136,120]
[370022346,1751837640452,619.28,0.00030136,120]
[370022347,1751837640777,460.0,0.00030136,120]
[370022348,1751837641086,460.0,0.00030136,120]
[370022349,1751837643062,660.33,0.00030136,120]
[370022350,1751837643765,1052.0,0.00030136,120]
[370022351,1751837643811,509.88,0.00030136,120]
[370022352,1751837644135,1955.48,0.00030136,120]
[370022353,1751837645367,1127.47,0.00030136,120]
[370022354,1751837645631,1010.62,0.00030136,120]
[370022355,1751837646041,460.0,0.00030136,120]
[370022356,1751837646184,2477.49,0.00030136,120]
[370022357,1751837651040,460.0,0.00030136,120]
[370022358,1751837651280,630.3,0.00030136,120]
[370022359,1751837651740,460.0,0.00030136,120]
[370022360,1751837653822,724.6,0.00030136,120]
[370022361,1751837654903,1072.63,0.00030136,120]
[370022362,1751837654955,460.0,0.00030136,120]
[370022363,1751837655873,486.24,0.00030136,120]
[370022364,1751837656288,551.74,0.00030136,120]
[370022365,1751837657737,744.84,0.00030136,120]
[370022366,1751837657861,460.0,0.00030136,120]
[370022367,1751837658561,460.0,0.00030136,120]
[370022368,1751837658877,460.0,0.00030136,120]
[370022369,1751837659681,591.98,0.00030136,120]
[370022370,1751837661707,460.0,0.00030136,120]
[370022371,1751837662708,460.0,0.00030136,120]
[370022372,1751837663108,1462.38,0.00030136,120]
[370022373,1751837663155,699.46,0.00030136,120]
[370022374,1751837664468,629.31,0.00030136,120]
[370022375,1751837665036,460.0,0.00030136,120]
[370022376,1751837665954,524.72030267,0.00030136,120]
[370022377,1751837666761,460.0,0.00030136,120]
[370022378,1751837669108,460.0,0.00030136,120]
[370022379,1751837669207,1455.24,0.00030136,120]
[370022380,1751837669799,460.0,0.00030136,120]
[370022381,1751837670157,460.0,0.00030136,120]
[370022382,1751837670269,2132.34,0.00030136,120]
[370022383,1751837671002,460.0,0.00030136,120]
[370022384,1751837671647,2378.82,0.00030136,120]
[370022385,1751837673552,460.0,0.00030136,120]
[370022386,1751837674836,614.04,0.00030136,120]
[370022387,1751837676186,478.64,0.00030136,120]
[370022388,1751837676952,460.46,0.00030136,120]
[370022389,1751837677318,460.0,0.00030136,120]
[370022390,1751837677426,460.0,0.00030136,120]
[370022391,1751837678151,828.63,0.00030136,120]
[370022392,1751837678964,460.0,0.00030136,120]
[370022393,1751837679251,460.0,0.00030136,120]
[370022394,1751837680123,460.0,0.00030136,120]
[370022395,1751837680357,1094.76,0.00030136,120]
[370022396,1751837681099,763.94,0.00030136,120]
[370022397,1751837682097,680.08,0.00030136,120]
[370022398,1751837683171,516.21,0.00030136,120]
[370022399,1751837683391,1000.0,0.00030136,120]
[370022400,1751837685090,1061.91,0.00030136,120]
[370022401,1751837685280,460.0,0.00030136,120]
[370022402,1751837687892,460.0,0.00030136,120]
[370022403,1751837688694,549.6,0.00030136,120]
[370022404,1751837689102,460.0,0.00030136,120]
[370022405,1751837689451,460.0,0.00030136,120]
[370022406,1751837691244,507.93,0.00030136,120]
[370022407,1751837691568,531.19,0.00030136,120]
[370022408,1751837691644,956.92,0.00030136,120]
[370022409,1751837692444,3978.48,0.00030136,120]
[370022410,1751837692485,460.0,0.00030136,120]
[370022411,1751837692558,460.0,0.00030136,120]
[370022412,1751837692597,460.0,0.00030136,120]
[370022413,1751837695430,460.0,0.00030136,120]
[370022414,1751837695583,629.32,0.00030136,120]
[370022415,1751837696002,513.02,0.00030136,120]
[370022416,1751837697734,541.06,0.00030136,120]
[370022417,1751837698311,962.46,0.00030136,120]
[370022418,1751837698506,487.37,0.00030136,120]
[370022419,1751837699377,460.0,0.00030136,120]
[370022420,1751837702748,460.0,0.00030136,120]
[370022422,1751837703525,1219.5,0.00030136,120]
[370022423,1751837704157,577.62,0.00030136,120]
[370022424,1751837704301,857.54,0.00030136,120]
[370022425,1751837705874,1267.71,0.00030136,120]
[370022426,1751837710159,703.52,0.00030136,120]
[370022427,1751837710776,460.0,0.00030136,120]
[370022428,1751837710948,473.15,0.00030136,120]
[370022429,1751837713433,460.0,0.00030136,120]
[370022430,1751837714863,633.46,0.00030136,120]
[370022431,1751837716723,460.0,0.00030136,120]
[370022432,1751837716776,460.0,0.00030136,120]
[370022433,1751837718141,460.0,0.00030136,120]
[370022434,1751837718196,460.0,0.00030136,120]
[370022435,1751837718370,527.71,0.00030136,120]
[370022436,1751837718506,460.0,0.00030136,120]
[370022437,1751837718551,460.0,0.00030136,120]
[370022438,1751837719513,558.87,0.00030136,120]
[370022439,1751837719979,460.0,0.00030136,120]
[370022440,1751837720883,460.0,0.00030136,120]
[370022441,1751837720938,460.0,0.00030136,120]
[370022442,1751837723508,460.0,0.00030136,120]
[370022443,1751837724873,634.35,0.00030136,120]
[370022444,1751837725351,981.94,0.00030136,120]
[370022445,1751837726293,597.52,0.00030136,120]
[370022446,1751837727104,490.19,0.00030136,120]
[370022447,1751837731298,3255.8,0.00030136,120]
[370022448,1751837731379,460.0,0.00030136,120]
[370022449,1751837731426,460.0,0.00030136,120]
[370022450,1751837731799,460.0,0.00030136,120]
[370022451,1751837737519,6289.38,0.00030136,120]
[370022452,1751837738266,1026.33,0.00030136,120]
[370022453,1751837738973,973.04,0.00030136,120]
[370022454,1751837739065,460.0,0.00030136,120]
[370022455,1751837739332,1857.19,0.00030136,120]
[370022456,1751837739984,658.38,0.00030136,120]
[370022457,1751837740761,460.0,0.00030136,120]
[370022458,1751837740854,460.0,0.00030136,120]
[370022459,1751837741141,528.77,0.00030136,120]
[370022460,1751837742609,485.18,0.00030136,120]
[370022461,1751837742719,460.0,0.00030136,120]
[370022462,1751837742783,179.92649139,0.00030136,120]
[370022463,1751837744727,460.0,0.00030136,120]
[370022464,1751837745433,654.88,0.00030136,120]
[370022465,1751837745488,1808.03,0.00030136,120]
[370022466,1751837749799,608.23,0.00030136,120]
[370022467,1751837750245,523.63,0.00030136,120]
[370022468,1751837750862,553.48,0.00030136,120]
[370022469,1751837751751,706.82,0.00030136,120]
[370022470,1751837752516,890.48,0.00030136,120]
[370022471,1751837752800,1023.1,0.00030136,120]
[370022472,1751837756671,1454.39,0.00030136,120]
[370022473,1751837758710,39442.49,0.00030136,120]
[370022474,1751837758973,653.39,0.00030136,120]
[370022475,1751837759814,489.94,0.00030136,120]
[370022476,1751837760649,613.37,0.00030136,120]
[370022477,1751837761107,460.0,0.00030136,120]
[370022478,1751837762593,618.83,0.00030136,120]
[370022479,1751837764383,503.94,0.00030136,120]
[370022480,1751837766033,1131.92,0.00030136,120]
[370022481,1751837769113,475.65,0.00030136,120]
[370022482,1751837769252,460.0,0.00030136,120]
[370022483,1751837771561,460.0,0.00030136,120]
[370022484,1751837771626,460.0,0.00030136,120]
[370022485,1751837772494,460.0,0.00030136,120]
[370022486,1751837772841,528.6,0.00030136,120]
[370022487,1751837773852,460.0,0.00030136,120]
[370022488,1751837773931,543.69,0.00030136,120]
[370022489,1751837774359,482.26,0.00030136,120]
[370022490,1751837775805,460.0,0.00030136,120]
[370022491,1751837776384,919.11,0.00030136,120]
[370022492,1751837777720,585.07408302,0.00030136,120]
[370022493,1751837777802,460.0,0.00030136,120]
[370022494,1751837777863,460.0,0.00030136,120]
[370022495,1751837779570,460.0,0.00030136,120]
[370022496,1751837779887,722.94,0.00030136,120]
[370022497,1751837781954,644.37,0.00030136,120]
[370022498,1751837782139,7165.65,0.00030136,120]
[370022499,1751837782278,460.0,0.00030136,120]
[370022500,1751837784081,758.08,0.00030136,120]
[370022501,1751837784201,882.7,0.00030136,120]
[370022502,1751837784621,1238.98,0.00030136,120]
[370022503,1751837785074,460.0,0.00030136,120]
[370022504,1751837786373,814.81,0.00030136,120]
[370022505,1751837786986,460.0,0.00030136,120]
[370022506,1751837787424,460.0,0.00030136,120]
[370022507,1751837787538,460.0,0.00030136,120]
[370022508,1751837788140,460.0,0.00030136,120]
[370022509,1751837789304,460.0,0.00030136,120]
[370022510,1751837791144,460.0,0.00030136,120]
[370022511,1751837791420,620.46,0.00030136,120]
[370022512,1751837792025,1555.65,0.00030136,120]
[370022513,1751837793831,460.0,0.00030136,120]
[370022514,1751837794378,460.0,0.00030136,120]
[370022515,1751837795619,460.0,0.00030136,120]
[370022516,1751837796983,822.59,0.00030136,120]
[370022517,1751837797123,379.40030662,0.00030136,120]
[370022518,1751837798624,535.27,0.00030136,120]
[370022519,1751837798763,531.89,0.00030136,120]
[370022520,1751837799000,460.0,0.00030136,120]
[370022521,1751837800443,1355.59,0.00030136,120]
[370022522,1751837800960,1033.49,0.00030136,120]
[370022523,1751837802949,558.96,0.00030136,120]
[370022524,1751837803003,460.0,0.00030136,120]
[370022525,1751837804221,468.87,0.00030136,120]
[370022526,1751837804266,556.86,0.00030136,120]
[370022527,1751837805870,820.72,0.00030136,120]
[370022528,1751837807366,471.8,0.00030136,120]
[370022529,1751837807515,481.1,0.00030136,120]
[370022530,1751837809668,604.21389513,0.00030136,120]
[370022531,1751837809714,460.0,0.00030136,120]
[370022532,1751837809984,460.0,0.00030136,120]
[370022533,1751837810982,460.0,0.00030136,120]
[370022534,1751837811919,674.02,0.00030136,120]
[370022535,1751837811978,489.35,0.00030136,120]
[370022536,1751837812033,795.66,0.00030136,120]
[370022537,1751837812152,506.37,0.00030136,120]
[370022538,1751837812449,460.0,0.00030136,120]
[370022539,1751837814362,586.03,0.00030136,120]
[370022540,1751837815278,635.66,0.00030136,120]
[370022541,1751837816307,923.87,0.00030136,120]
[370022542,1751837817322,307.04,0.00030136,120]
[370022543,1751837819158,460.0,0.00030136,120]
[370022544,1751837819906,890.88,0.00030136,120]
[370022545,1751837819978,460.0,0.00030136,120]
[370022546,1751837821688,531.32,0.00030136,120]
[370022547,1751837822331,1357.65,0.00030136,120]
[370022548,1751837823821,460.0,0.00030136,120]
[370022549,1751837824778,469.93135876,0.00030136,120]
[370022550,1751837825073,935.82,0.00030136,120]
[370022551,1751837827242,460.0,0.00030136,120]
[370022552,1751837827298,625.81,0.00030136,120]
[370022553,1751837827580,793.73,0.00030136,120]
[370022554,1751837828986,1202.81,0.00030136,120]
[370022555,1751837829462,376.98962566,0.00030136,120]
[370022556,1751837829962,474.6,0.00030136,120]
[370022557,1751837830276,526.65,0.00030136,120]
[370022558,1751837830617,2087.61,0.00030136,120]
[370022559,1751837832850,1931.56,0.00030136,120]
[370022560,1751837835062,460.0,0.00030136,120]
[370022561,1751837835250,460.0,0.00030136,120]
[370022562,1751837836360,460.0,0.00030136,120]
[370022563,1751837836898,963.87,0.00030136,120]
[370022564,1751837838162,460.0,0.00030136,120]
[370022565,1751837838680,460.0,0.00030136,120]
[370022566,1751837838780,622.32,0.00030136,120]
[370022567,1751837839678,460.0,0.00030136,120]